[Event "Early-Titled-Tuesday-Blitz-May-07-2024"]
[Site "Chess.com"]
[Date "2024.05.07"]
[Round "6"]
[White "sokidze"]
[Black "bazar-wokzal"]
[Result "0-1"]
[WhiteElo "2800"]
[BlackElo "2589"]
[TimeControl "180+1"]
[EndTime "9:09:16 PDT"]
[Termination "bazar-wokzal won on time"]

1. d4 {[%clk 0:03:00.9]} 1... Nf6 {[%clk 0:02:58.6]} 2. Nf3 {[%clk 0:03:00.5]}
2... e6 {[%clk 0:02:57.2]} 3. g3 {[%clk 0:03:00.7]} 3... b5 {[%clk 0:02:56]} 4.
Bg2 {[%clk 0:03:00.6]} 4... Bb7 {[%clk 0:02:55.9]} 5. O-O {[%clk 0:03:00.8]}
5... c5 {[%clk 0:02:56.1]} 6. c3 {[%clk 0:02:52.7]} 6... Na6 {[%clk 0:02:55.7]}
7. Bg5 {[%clk 0:02:47.9]} 7... Be7 {[%clk 0:02:55]} 8. Bxf6 {[%clk 0:02:27.5]}
8... Bxf6 {[%clk 0:02:52]} 9. Qd3 {[%clk 0:02:28.1]} 9... Qb6 {[%clk 0:02:50.5]}
10. e4 {[%clk 0:02:19.6]} 10... O-O {[%clk 0:02:44.1]} 11. Na3 {[%clk
0:01:52.8]} 11... b4 {[%clk 0:02:40]} 12. Nc4 {[%clk 0:01:41.3]} 12... Qc7
{[%clk 0:02:36.4]} 13. d5 {[%clk 0:01:35.7]} 13... exd5 {[%clk 0:02:31.3]} 14.
exd5 {[%clk 0:01:35.7]} 14... d6 {[%clk 0:02:30.7]} 15. Nfd2 {[%clk 0:01:32.4]}
15... bxc3 {[%clk 0:02:30]} 16. bxc3 {[%clk 0:01:31.8]} 16... Qd8 {[%clk
0:02:21.8]} 17. Rab1 {[%clk 0:01:28.7]} 17... Rb8 {[%clk 0:02:21.4]} 18. Rb5
{[%clk 0:01:15.7]} 18... Nc7 {[%clk 0:02:19.9]} 19. Rb3 {[%clk 0:00:58]} 19...
Ba6 {[%clk 0:02:16.6]} 20. Rxb8 {[%clk 0:00:48.1]} 20... Qxb8 {[%clk 0:02:15.7]}
21. Rb1 {[%clk 0:00:48.8]} 21... Qa8 {[%clk 0:02:13.7]} 22. a4 {[%clk
0:00:36.6]} 22... Rb8 {[%clk 0:02:11.2]} 23. Re1 {[%clk 0:00:30.5]} 23... Re8
{[%clk 0:02:08.6]} 24. Ra1 {[%clk 0:00:26.4]} 24... Qd8 {[%clk 0:02:02.3]} 25.
h4 {[%clk 0:00:24.1]} 25... Qd7 {[%clk 0:01:59.2]} 0-1

[Event "Early-Titled-Tuesday-Blitz-May-07-2024"]
[Site "Chess.com"]
[Date "2024.05.07"]
[Round "6"]
[White "subham777"]
[Black "Darko-Dimitrijevic"]
[Result "1-0"]
[WhiteElo "2483"]
[BlackElo "2239"]
[TimeControl "180+1"]
[EndTime "9:09:16 PDT"]
[Termination "subham777 won by resignation"]

1. e4 {[%clk 0:03:00.9]} 1... g6 {[%clk 0:02:56.4]} 2. g3 {[%clk 0:02:58.9]}
2... b6 {[%clk 0:02:55.6]} 3. Bg2 {[%clk 0:02:55.6]} 3... Bb7 {[%clk 0:02:55.4]}
4. Ne2 {[%clk 0:02:55]} 4... Bg7 {[%clk 0:02:54.5]} 5. O-O {[%clk 0:02:54.3]}
5... e6 {[%clk 0:02:54.5]} 6. d4 {[%clk 0:02:53.3]} 6... Ne7 {[%clk 0:02:54.4]}
7. c4 {[%clk 0:02:53.5]} 7... d6 {[%clk 0:02:53.4]} 8. Nbc3 {[%clk 0:02:53.1]}
8... Nd7 {[%clk 0:02:52.7]} 9. Be3 {[%clk 0:02:53.4]} 9... O-O {[%clk
0:02:51.7]} 10. Qd2 {[%clk 0:02:53.3]} 10... a6 {[%clk 0:02:50.3]} 11. f4 {[%clk
0:02:53.1]} 11... Qc8 {[%clk 0:02:16.8]} 12. g4 {[%clk 0:02:46.6]} 12... f5
{[%clk 0:02:13]} 13. g5 {[%clk 0:02:45.5]} 13... fxe4 {[%clk 0:02:10.2]} 14.
Nxe4 {[%clk 0:02:44.5]} 14... d5 {[%clk 0:02:07.5]} 15. cxd5 {[%clk 0:02:40.2]}
15... Nxd5 {[%clk 0:02:06.8]} 16. N2c3 {[%clk 0:02:38.6]} 16... Nxe3 {[%clk
0:01:58.3]} 17. Qxe3 {[%clk 0:02:39.5]} 17... Kh8 {[%clk 0:01:53.4]} 18. Kh1
{[%clk 0:02:29.7]} 18... Rb8 {[%clk 0:01:49.6]} 19. Rae1 {[%clk 0:02:20.8]}
19... Re8 {[%clk 0:01:47]} 20. Kg1 {[%clk 0:02:13.8]} 20... b5 {[%clk
0:01:46.5]} 21. h4 {[%clk 0:02:11]} 21... Nb6 {[%clk 0:01:41]} 22. b3 {[%clk
0:02:03]} 22... Nd5 {[%clk 0:01:40.3]} 23. Qd2 {[%clk 0:01:55.7]} 23... Qd8
{[%clk 0:01:29.2]} 24. Rd1 {[%clk 0:01:42.7]} 24... Rf8 {[%clk 0:01:25.6]} 25.
Nxd5 {[%clk 0:01:30.4]} 25... Qxd5 {[%clk 0:01:23.4]} 26. Nc5 {[%clk 0:01:29.8]}
26... Qxg2+ {[%clk 0:01:12.5]} 27. Qxg2 {[%clk 0:01:28.6]} 27... Bxg2 {[%clk
0:01:11.6]} 28. Kxg2 {[%clk 0:01:29.5]} 28... Rb6 {[%clk 0:01:07.8]} 29. Nd7
{[%clk 0:01:28.3]} 29... Rd8 {[%clk 0:01:06.9]} 30. Nxb6 {[%clk 0:01:27.5]}
30... cxb6 {[%clk 0:01:06.7]} 31. Rfe1 {[%clk 0:01:28.3]} 31... Rd6 {[%clk
0:01:06.4]} 32. d5 {[%clk 0:01:27]} 32... Bc3 {[%clk 0:00:50.9]} 33. Rxe6 {[%clk
0:01:25.1]} 1-0

[Event "Early-Titled-Tuesday-Blitz-May-07-2024"]
[Site "Chess.com"]
[Date "2024.05.07"]
[Round "6"]
[White "JaackCamel"]
[Black "stratacticos"]
[Result "0-1"]
[WhiteElo "2225"]
[BlackElo "1846"]
[TimeControl "180+1"]
[EndTime "9:09:17 PDT"]
[Termination "stratacticos won by resignation"]

1. d4 {[%clk 0:03:00.9]} 1... Nf6 {[%clk 0:02:58.9]} 2. c4 {[%clk 0:02:59.8]}
2... c5 {[%clk 0:02:58.6]} 3. d5 {[%clk 0:02:59.4]} 3... b5 {[%clk 0:02:58.5]}
4. cxb5 {[%clk 0:02:58.7]} 4... a6 {[%clk 0:02:58.4]} 5. bxa6 {[%clk 0:02:57.8]}
5... e6 {[%clk 0:02:57.9]} 6. Nc3 {[%clk 0:02:57]} 6... Nxd5 {[%clk 0:02:56.3]}
7. Nxd5 {[%clk 0:02:54.6]} 7... exd5 {[%clk 0:02:56.5]} 8. Qxd5 {[%clk
0:02:53.1]} 8... Nc6 {[%clk 0:02:57.4]} 9. e4 {[%clk 0:02:45.7]} 9... Be7 {[%clk
0:02:56.5]} 10. Nf3 {[%clk 0:02:42.8]} 10... O-O {[%clk 0:02:55.6]} 11. Bc4
{[%clk 0:02:32.9]} 11... Bxa6 {[%clk 0:02:50.1]} 12. O-O {[%clk 0:02:29.1]}
12... Nb4 {[%clk 0:02:48.6]} 13. Qh5 {[%clk 0:02:08]} 13... Bxc4 {[%clk
0:02:46.8]} 14. Rd1 {[%clk 0:02:06.2]} 14... Be2 {[%clk 0:02:39.5]} 15. Rd2
{[%clk 0:01:57.7]} 15... Bxf3 {[%clk 0:02:28.1]} 16. Qxf3 {[%clk 0:01:57.1]}
16... Nxa2 {[%clk 0:02:24.3]} 17. h3 {[%clk 0:01:43.5]} 17... Nxc1 {[%clk
0:02:23.5]} 18. Rxc1 {[%clk 0:01:42.9]} 18... Bg5 {[%clk 0:02:22.5]} 19. Rcd1
{[%clk 0:01:38.2]} 19... Bxd2 {[%clk 0:02:21.9]} 20. Rxd2 {[%clk 0:01:38.6]}
20... Qc7 {[%clk 0:02:18.3]} 21. g3 {[%clk 0:01:37.3]} 21... Rfe8 {[%clk
0:01:53.9]} 22. Rd5 {[%clk 0:01:33.8]} 22... Ra1+ {[%clk 0:01:40.4]} 23. Kg2
{[%clk 0:01:33.5]} 23... Re1 {[%clk 0:01:39.8]} 24. Qf5 {[%clk 0:01:27.4]} 24...
Qc6 {[%clk 0:01:20.9]} 25. f3 {[%clk 0:01:24.2]} 25... Re2+ {[%clk 0:01:16.6]}
26. Kg1 {[%clk 0:01:19.4]} 26... Qa4 {[%clk 0:01:10.3]} 27. Qxd7 {[%clk
0:01:14.4]} 27... Qxd7 {[%clk 0:01:00.1]} 28. Rxd7 {[%clk 0:01:14.2]} 28... Rxb2
{[%clk 0:01:00.5]} 29. Rc7 {[%clk 0:01:13.8]} 29... Rc2 {[%clk 0:01:00.1]} 30.
h4 {[%clk 0:01:13.3]} 30... Ra8 {[%clk 0:00:59.4]} 0-1

[Event "Early-Titled-Tuesday-Blitz-May-07-2024"]
[Site "Chess.com"]
[Date "2024.05.07"]
[Round "6"]
[White "Skatchkov_V"]
[Black "masterofpuppets2"]
[Result "0-1"]
[WhiteElo "2616"]
[BlackElo "2486"]
[TimeControl "180+1"]
[EndTime "9:09:21 PDT"]
[Termination "masterofpuppets2 won by resignation"]

1. d4 {[%clk 0:02:59.3]} 1... d5 {[%clk 0:02:59.4]} 2. c4 {[%clk 0:02:57.6]}
2... e6 {[%clk 0:02:59.5]} 3. Nf3 {[%clk 0:02:55.6]} 3... Nf6 {[%clk 0:02:59.6]}
4. g3 {[%clk 0:02:53.9]} 4... Be7 {[%clk 0:02:59.8]} 5. Bg2 {[%clk 0:02:51.1]}
5... O-O {[%clk 0:03:00.1]} 6. Nc3 {[%clk 0:02:48.2]} 6... dxc4 {[%clk
0:02:57.6]} 7. Ne5 {[%clk 0:02:45.5]} 7... c5 {[%clk 0:02:39.9]} 8. dxc5 {[%clk
0:02:41.2]} 8... Qc7 {[%clk 0:02:39.9]} 9. Nxc4 {[%clk 0:02:39.5]} 9... Qxc5
{[%clk 0:02:38.3]} 10. b3 {[%clk 0:02:30.9]} 10... Nc6 {[%clk 0:02:32.1]} 11.
O-O {[%clk 0:02:27.9]} 11... Rd8 {[%clk 0:02:31.4]} 12. Ba3 {[%clk 0:02:08.7]}
12... Rxd1 {[%clk 0:02:05.1]} 13. Raxd1 {[%clk 0:02:06.8]} 13... Nb4 {[%clk
0:01:56.8]} 14. Na4 {[%clk 0:01:50.2]} 14... Qb5 {[%clk 0:01:47.6]} 15. Nd6
{[%clk 0:01:45.9]} 15... Bxd6 {[%clk 0:01:41.5]} 16. Rxd6 {[%clk 0:01:45.6]}
16... Bd7 {[%clk 0:01:36.9]} 17. Rc1 {[%clk 0:01:44.3]} 17... Bc6 {[%clk
0:01:25.7]} 18. Bf1 {[%clk 0:01:33.3]} 18... Qa5 {[%clk 0:01:11.7]} 19. Rc5
{[%clk 0:01:27.2]} 19... b5 {[%clk 0:01:01.6]} 20. Bxb4 {[%clk 0:01:19]} 20...
Qxb4 {[%clk 0:01:02.5]} 21. Rdxc6 {[%clk 0:01:19]} 21... h5 {[%clk 0:00:58]} 22.
Nc3 {[%clk 0:01:17.7]} 22... a6 {[%clk 0:00:50.5]} 23. Bg2 {[%clk 0:01:16.9]}
23... Rd8 {[%clk 0:00:49.9]} 24. Rxa6 {[%clk 0:01:13.2]} 24... Qxc5 {[%clk
0:00:49.1]} 0-1

[Event "Early-Titled-Tuesday-Blitz-May-07-2024"]
[Site "Chess.com"]
[Date "2024.05.07"]
[Round "6"]
[White "ViralduS"]
[Black "thesupera12"]
[Result "0-1"]
[WhiteElo "2626"]
[BlackElo "2460"]
[TimeControl "180+1"]
[EndTime "9:09:24 PDT"]
[Termination "thesupera12 won on time"]

1. e4 {[%clk 0:03:00.9]} 1... d6 {[%clk 0:02:55.5]} 2. d4 {[%clk 0:02:58.5]}
2... f5 {[%clk 0:02:55.2]} 3. Nc3 {[%clk 0:02:43.3]} 3... Nf6 {[%clk 0:02:53.7]}
4. exf5 {[%clk 0:02:40.6]} 4... Bxf5 {[%clk 0:02:52.7]} 5. Bd3 {[%clk
0:02:35.7]} 5... Bxd3 {[%clk 0:02:51.9]} 6. Qxd3 {[%clk 0:02:34.9]} 6... g6
{[%clk 0:02:50.9]} 7. Nf3 {[%clk 0:02:31.8]} 7... Bg7 {[%clk 0:02:51.1]} 8. Ng5
{[%clk 0:02:27.9]} 8... Qd7 {[%clk 0:02:47.7]} 9. d5 {[%clk 0:02:25.1]} 9... O-O
{[%clk 0:02:44]} 10. Ne6 {[%clk 0:02:23.6]} 10... Rf7 {[%clk 0:02:43.1]} 11. Be3
{[%clk 0:02:20.6]} 11... c6 {[%clk 0:02:43]} 12. Nxg7 {[%clk 0:01:54.7]} 12...
Kxg7 {[%clk 0:02:43.9]} 13. O-O-O {[%clk 0:01:52.3]} 13... cxd5 {[%clk 0:02:43]}
14. Nxd5 {[%clk 0:01:51.3]} 14... Nxd5 {[%clk 0:02:42.6]} 15. Qxd5 {[%clk
0:01:50.1]} 15... Nc6 {[%clk 0:02:43.1]} 16. f3 {[%clk 0:01:37.9]} 16... Rc8
{[%clk 0:02:34.8]} 17. h4 {[%clk 0:01:18.6]} 17... Qf5 {[%clk 0:02:33.6]} 18. c3
{[%clk 0:00:50.9]} 18... Qxd5 {[%clk 0:02:25.6]} 19. Rxd5 {[%clk 0:00:50]} 19...
Rf5 {[%clk 0:02:26.3]} 20. Rhd1 {[%clk 0:00:39.5]} 20... Rxd5 {[%clk 0:02:26.4]}
21. Rxd5 {[%clk 0:00:38.7]} 21... Kf7 {[%clk 0:02:25.4]} 22. Kd2 {[%clk
0:00:30.4]} 22... Ke6 {[%clk 0:02:24.8]} 23. Rg5 {[%clk 0:00:25.6]} 23... b6
{[%clk 0:02:23.7]} 24. Kc2 {[%clk 0:00:09.2]} 24... Ne5 {[%clk 0:02:23.2]} 25.
Bd4 {[%clk 0:00:07.1]} 25... Nf7 {[%clk 0:02:22]} 26. Rg4 {[%clk 0:00:06.3]}
26... Kf5 {[%clk 0:02:19.8]} 27. Kd3 {[%clk 0:00:04.6]} 27... e5 {[%clk
0:02:16.1]} 28. Be3 {[%clk 0:00:03.3]} 28... d5 {[%clk 0:02:12.3]} 29. Ra4
{[%clk 0:00:02.6]} 29... Rc7 {[%clk 0:02:12.2]} 30. g4+ {[%clk 0:00:00.4]} 30...
Ke6 {[%clk 0:02:12.7]} 31. Rb4 {[%clk 0:00:00.9]} 31... Nd6 {[%clk 0:02:12.2]}
32. b3 {[%clk 0:00:00.5]} 32... Ne8 {[%clk 0:02:09.2]} 33. a4 {[%clk 0:00:00.4]}
33... Nf6 {[%clk 0:02:09.9]} 34. a5 {[%clk 0:00:00.6]} 34... bxa5 {[%clk
0:02:08.2]} 0-1

[Event "Early-Titled-Tuesday-Blitz-May-07-2024"]
[Site "Chess.com"]
[Date "2024.05.07"]
[Round "6"]
[White "H3nriqueTV"]
[Black "Ural_bogatyr"]
[Result "0-1"]
[WhiteElo "2426"]
[BlackElo "2573"]
[TimeControl "180+1"]
[EndTime "9:09:26 PDT"]
[Termination "Ural_bogatyr won by resignation"]

1. e4 {[%clk 0:02:59.7]} 1... e5 {[%clk 0:02:56.3]} 2. Nf3 {[%clk 0:02:59.1]}
2... Nc6 {[%clk 0:02:55.8]} 3. Bb5 {[%clk 0:02:58.2]} 3... a6 {[%clk 0:02:55.5]}
4. Ba4 {[%clk 0:02:41]} 4... Nf6 {[%clk 0:02:52.6]} 5. O-O {[%clk 0:02:40.9]}
5... Nxe4 {[%clk 0:02:52]} 6. Re1 {[%clk 0:02:41.1]} 6... Nc5 {[%clk 0:02:51.3]}
7. Bxc6 {[%clk 0:02:37.9]} 7... dxc6 {[%clk 0:02:52.2]} 8. Nxe5 {[%clk
0:02:36.4]} 8... Ne6 {[%clk 0:02:50.3]} 9. c3 {[%clk 0:02:20.4]} 9... Be7 {[%clk
0:02:45.5]} 10. d4 {[%clk 0:02:20.6]} 10... O-O {[%clk 0:02:45.4]} 11. Nd2
{[%clk 0:02:19]} 11... f6 {[%clk 0:02:41.7]} 12. Nef3 {[%clk 0:02:19]} 12... Re8
{[%clk 0:02:42]} 13. Qb3 {[%clk 0:02:13.7]} 13... Bd6 {[%clk 0:02:40.2]} 14. Ne4
{[%clk 0:02:13]} 14... a5 {[%clk 0:02:27.4]} 15. a4 {[%clk 0:02:10.4]} 15... Kh8
{[%clk 0:02:26.2]} 16. Bd2 {[%clk 0:02:00.6]} 16... Nf8 {[%clk 0:02:14.9]} 17.
Bh6 {[%clk 0:01:03.6]} 17... Be6 {[%clk 0:02:02.4]} 18. Bxg7+ {[%clk 0:00:56.4]}
18... Kxg7 {[%clk 0:02:01.8]} 19. Qxb7 {[%clk 0:00:57.3]} 19... Bd5 {[%clk
0:01:56]} 20. Ng3 {[%clk 0:00:47.8]} 20... Qd7 {[%clk 0:01:47.1]} 21. Nh4 {[%clk
0:00:39.9]} 21... Reb8 {[%clk 0:01:42.6]} 22. Nhf5+ {[%clk 0:00:39.8]} 22... Kh8
{[%clk 0:01:41.6]} 23. Nxd6 {[%clk 0:00:36.2]} 23... Qxd6 {[%clk 0:01:32.6]} 24.
Nf5 {[%clk 0:00:19.8]} 24... Qd7 {[%clk 0:01:29.9]} 25. Re7 {[%clk 0:00:19]}
25... Rxb7 {[%clk 0:01:29.6]} 26. Rxd7 {[%clk 0:00:19.5]} 26... Nxd7 {[%clk
0:01:30.3]} 0-1

[Event "Early-Titled-Tuesday-Blitz-May-07-2024"]
[Site "Chess.com"]
[Date "2024.05.07"]
[Round "6"]
[White "andrew-blr"]
[Black "tantaan"]
[Result "1-0"]
[WhiteElo "2607"]
[BlackElo "2483"]
[TimeControl "180+1"]
[EndTime "9:09:30 PDT"]
[Termination "andrew-blr won by resignation"]

1. d4 {[%clk 0:03:00.9]} 1... Nf6 {[%clk 0:03:00]} 2. Nf3 {[%clk 0:03:00.3]}
2... e6 {[%clk 0:03:00.1]} 3. Nbd2 {[%clk 0:02:58.6]} 3... c5 {[%clk 0:02:59.2]}
4. e3 {[%clk 0:02:58.3]} 4... Nc6 {[%clk 0:02:59.1]} 5. c3 {[%clk 0:02:57.7]}
5... d5 {[%clk 0:02:58.8]} 6. Bd3 {[%clk 0:02:57.6]} 6... Bd6 {[%clk 0:02:59.2]}
7. O-O {[%clk 0:02:56.3]} 7... O-O {[%clk 0:02:59.5]} 8. dxc5 {[%clk 0:02:51.6]}
8... Bxc5 {[%clk 0:02:59.3]} 9. e4 {[%clk 0:02:52.2]} 9... dxe4 {[%clk
0:02:56.6]} 10. Nxe4 {[%clk 0:02:52]} 10... Nxe4 {[%clk 0:02:48.9]} 11. Bxe4
{[%clk 0:02:52.9]} 11... Qxd1 {[%clk 0:02:49]} 12. Rxd1 {[%clk 0:02:52.3]} 12...
f5 {[%clk 0:02:46.6]} 13. Bxc6 {[%clk 0:02:50.7]} 13... bxc6 {[%clk 0:02:45.5]}
14. Ne5 {[%clk 0:02:44.9]} 14... Bb6 {[%clk 0:02:19.9]} 15. Nxc6 {[%clk
0:02:27.1]} 15... Bb7 {[%clk 0:02:15.6]} 16. Ne5 {[%clk 0:02:26.7]} 16... h6
{[%clk 0:01:51.9]} 17. Be3 {[%clk 0:02:22.9]} 17... Bxe3 {[%clk 0:01:48.2]} 18.
fxe3 {[%clk 0:02:21.1]} 18... Rfd8 {[%clk 0:01:48.9]} 19. Rd4 {[%clk 0:02:18.9]}
19... Rxd4 {[%clk 0:01:29.7]} 20. exd4 {[%clk 0:02:18]} 20... g5 {[%clk
0:01:28.9]} 21. b4 {[%clk 0:02:14.2]} 21... Rc8 {[%clk 0:01:26]} 22. c4 {[%clk
0:02:12.2]} 22... Kg7 {[%clk 0:01:26.2]} 23. a4 {[%clk 0:02:11.7]} 23... Be4
{[%clk 0:01:23.8]} 24. b5 {[%clk 0:02:02.6]} 24... Rd8 {[%clk 0:01:20.5]} 25.
Rd1 {[%clk 0:02:01.5]} 25... Bc2 {[%clk 0:01:20.3]} 26. Rd2 {[%clk 0:01:59.8]}
26... Bxa4 {[%clk 0:01:19.3]} 27. Ra2 {[%clk 0:01:59.4]} 27... Bb3 {[%clk
0:00:18.4]} 28. Rxa7+ {[%clk 0:01:56]} 28... Kg8 {[%clk 0:00:18.8]} 29. b6
{[%clk 0:01:54.7]} 29... Bc2 {[%clk 0:00:12.4]} 30. Nc6 {[%clk 0:01:51.1]} 1-0

[Event "Early-Titled-Tuesday-Blitz-May-07-2024"]
[Site "Chess.com"]
[Date "2024.05.07"]
[Round "6"]
[White "cycygogne"]
[Black "Supergiuly"]
[Result "0-1"]
[WhiteElo "2169"]
[BlackElo "2347"]
[TimeControl "180+1"]
[EndTime "9:09:30 PDT"]
[Termination "Supergiuly won by resignation"]

1. e4 {[%clk 0:03:00.9]} 1... b6 {[%clk 0:03:00.8]} 2. d4 {[%clk 0:03:00.5]}
2... Bb7 {[%clk 0:02:59.6]} 3. Bd3 {[%clk 0:02:59.4]} 3... g6 {[%clk 0:02:59.7]}
4. Nf3 {[%clk 0:02:57.4]} 4... Bg7 {[%clk 0:02:59.3]} 5. O-O {[%clk 0:02:56.3]}
5... e6 {[%clk 0:02:59.8]} 6. c3 {[%clk 0:02:54.6]} 6... Ne7 {[%clk 0:03:00.7]}
7. Be3 {[%clk 0:02:52.9]} 7... Kf8 {[%clk 0:03:00]} 8. Qd2 {[%clk 0:02:52.3]}
8... Ke8 {[%clk 0:02:56.5]} 9. Bh6 {[%clk 0:02:51.6]} 9... Rg8 {[%clk
0:02:55.3]} 10. Bxg7 {[%clk 0:02:51.3]} 10... Rxg7 {[%clk 0:02:56.2]} 11. Qh6
{[%clk 0:02:50.6]} 11... Kf8 {[%clk 0:02:56.5]} 12. Ng5 {[%clk 0:02:47.8]} 12...
Kg8 {[%clk 0:02:55.2]} 13. f4 {[%clk 0:02:40.1]} 13... f5 {[%clk 0:02:53.7]} 14.
e5 {[%clk 0:02:31.6]} 14... Nd5 {[%clk 0:02:52.1]} 15. Rf3 {[%clk 0:02:10.5]}
15... Qe7 {[%clk 0:02:44.9]} 16. Nd2 {[%clk 0:01:52.9]} 16... c5 {[%clk
0:02:42.5]} 17. Raf1 {[%clk 0:01:51.1]} 17... cxd4 {[%clk 0:02:40.2]} 18. cxd4
{[%clk 0:01:51.7]} 18... Qb4 {[%clk 0:02:39]} 19. R1f2 {[%clk 0:01:38.3]} 19...
Qxd4 {[%clk 0:02:34.9]} 20. Nxh7 {[%clk 0:01:32.3]} 20... Nc6 {[%clk 0:01:56.2]}
21. Nb3 {[%clk 0:01:31]} 21... Qa4 {[%clk 0:01:51.3]} 22. Rh3 {[%clk 0:01:28]}
22... Nd8 {[%clk 0:00:53]} 23. Ng5 {[%clk 0:01:24.6]} 23... Nf7 {[%clk 0:00:52]}
24. Nh7 {[%clk 0:01:01.8]} 24... Nxh6 {[%clk 0:00:47.6]} 25. Nf6+ {[%clk
0:01:00.9]} 25... Nxf6 {[%clk 0:00:47]} 26. exf6 {[%clk 0:01:01.8]} 26... Rh7
{[%clk 0:00:41.5]} 0-1

[Event "Early-Titled-Tuesday-Blitz-May-07-2024"]
[Site "Chess.com"]
[Date "2024.05.07"]
[Round "6"]
[White "Caroexpert"]
[Black "IriBu"]
[Result "1-0"]
[WhiteElo "2675"]
[BlackElo "2586"]
[TimeControl "180+1"]
[EndTime "9:09:41 PDT"]
[Termination "Caroexpert won by resignation"]

1. d4 {[%clk 0:02:54.1]} 1... Nf6 {[%clk 0:02:59.6]} 2. Nf3 {[%clk 0:02:54.2]}
2... g6 {[%clk 0:03:00]} 3. c4 {[%clk 0:02:52.7]} 3... Bg7 {[%clk 0:03:00.1]} 4.
Nc3 {[%clk 0:02:53]} 4... d6 {[%clk 0:03:00.8]} 5. e4 {[%clk 0:02:52.7]} 5...
O-O {[%clk 0:03:01.3]} 6. Be2 {[%clk 0:02:52.9]} 6... e5 {[%clk 0:02:59.2]} 7.
O-O {[%clk 0:02:53.3]} 7... Nc6 {[%clk 0:02:59.2]} 8. d5 {[%clk 0:02:53.6]} 8...
Ne7 {[%clk 0:02:59.6]} 9. b4 {[%clk 0:02:54.2]} 9... a5 {[%clk 0:02:59.2]} 10.
Ba3 {[%clk 0:02:53.6]} 10... axb4 {[%clk 0:02:59]} 11. Bxb4 {[%clk 0:02:54.5]}
11... Nh5 {[%clk 0:02:59.2]} 12. c5 {[%clk 0:02:53.6]} 12... f5 {[%clk
0:02:52.7]} 13. Nd2 {[%clk 0:02:51]} 13... Nf4 {[%clk 0:02:48.9]} 14. cxd6
{[%clk 0:02:34.8]} 14... cxd6 {[%clk 0:02:47.6]} 15. Nc4 {[%clk 0:02:33.5]}
15... Ra6 {[%clk 0:02:40.3]} 16. Nb5 {[%clk 0:02:27]} 16... Rf6 {[%clk
0:02:27.9]} 17. Ncxd6 {[%clk 0:02:07.5]} 17... Nxe2+ {[%clk 0:02:25.7]} 18. Qxe2
{[%clk 0:02:06.8]} 18... Rfxd6 {[%clk 0:02:25.1]} 19. Nxd6 {[%clk 0:02:04.9]}
19... Rxd6 {[%clk 0:02:26]} 20. Bxd6 {[%clk 0:01:59.3]} 20... Qxd6 {[%clk
0:02:26.9]} 21. Rfc1 {[%clk 0:01:57.5]} 21... Bd7 {[%clk 0:02:27.2]} 22. f3
{[%clk 0:01:48.6]} 22... Bh6 {[%clk 0:02:16.4]} 23. Rc2 {[%clk 0:01:47.6]} 23...
fxe4 {[%clk 0:02:12.3]} 24. fxe4 {[%clk 0:01:47.6]} 24... Qb6+ {[%clk
0:02:12.7]} 25. Kh1 {[%clk 0:01:46.2]} 25... Nc8 {[%clk 0:02:12.9]} 26. Rb2
{[%clk 0:01:40.5]} 26... Qc7 {[%clk 0:02:09]} 27. Rab1 {[%clk 0:01:38.7]} 27...
Nd6 {[%clk 0:02:08.9]} 28. Rc2 {[%clk 0:01:31.3]} 28... Qa5 {[%clk 0:02:03.3]}
29. Qe1 {[%clk 0:01:30.3]} 29... Qa4 {[%clk 0:01:57.1]} 30. Rc7 {[%clk
0:01:26.8]} 30... Bb5 {[%clk 0:01:30.5]} 31. Qh4 {[%clk 0:01:22.8]} 31... Qxe4
{[%clk 0:01:13.7]} 32. Qxe4 {[%clk 0:01:05.4]} 32... Nxe4 {[%clk 0:01:13.7]} 33.
Rxb5 {[%clk 0:01:05.8]} 33... Be3 {[%clk 0:01:01.7]} 34. Rbxb7 {[%clk
0:01:00.4]} 1-0

[Event "Early-Titled-Tuesday-Blitz-May-07-2024"]
[Site "Chess.com"]
[Date "2024.05.07"]
[Round "6"]
[White "Lady_Nika"]
[Black "AnaKuchava"]
[Result "1-0"]
[WhiteElo "2483"]
[BlackElo "2207"]
[TimeControl "180+1"]
[EndTime "9:09:43 PDT"]
[Termination "Lady_Nika won on time"]

1. g4 {[%clk 0:03:00.9]} 1... d5 {[%clk 0:02:55]} 2. h3 {[%clk 0:03:00.7]} 2...
e5 {[%clk 0:02:53.6]} 3. d4 {[%clk 0:03:00.6]} 3... exd4 {[%clk 0:02:49.7]} 4.
Qxd4 {[%clk 0:02:59.5]} 4... Nc6 {[%clk 0:02:49.2]} 5. Qd1 {[%clk 0:02:57.7]}
5... Bc5 {[%clk 0:02:44.2]} 6. e3 {[%clk 0:02:56.3]} 6... Qh4 {[%clk 0:02:31.4]}
7. Qxd5 {[%clk 0:02:53.1]} 7... Bd6 {[%clk 0:02:22.4]} 8. Nf3 {[%clk 0:02:49.6]}
8... Qe7 {[%clk 0:02:21.5]} 9. Bg2 {[%clk 0:02:48.2]} 9... Be6 {[%clk
0:02:20.9]} 10. Qb5 {[%clk 0:02:45.1]} 10... Bd7 {[%clk 0:01:17.4]} 11. Nc3
{[%clk 0:02:31.8]} 11... Nf6 {[%clk 0:01:03.5]} 12. Bd2 {[%clk 0:02:30.9]} 12...
O-O {[%clk 0:00:55]} 13. O-O-O {[%clk 0:02:26.5]} 13... a6 {[%clk 0:00:50.4]}
14. Qe2 {[%clk 0:02:24.9]} 14... b5 {[%clk 0:00:32.4]} 15. g5 {[%clk 0:02:23.5]}
15... Ne4 {[%clk 0:00:29.4]} 16. Nxe4 {[%clk 0:02:09.4]} 16... Qxe4 {[%clk
0:00:30.3]} 17. Rhg1 {[%clk 0:02:03.5]} 17... Bf5 {[%clk 0:00:16.6]} 18. Ne1
{[%clk 0:02:03.6]} 18... Qe8 {[%clk 0:00:12.9]} 19. e4 {[%clk 0:02:00.7]} 19...
Be6 {[%clk 0:00:10]} 20. Kb1 {[%clk 0:01:57.9]} 20... Nd4 {[%clk 0:00:07.3]} 21.
Qd3 {[%clk 0:01:57.5]} 21... Bc5 {[%clk 0:00:02.4]} 22. f4 {[%clk 0:01:51.8]}
22... Bc4 {[%clk 0:00:02.5]} 23. Qe3 {[%clk 0:01:47.2]} 23... Nxc2 {[%clk
0:00:01.3]} 24. Qxc5 {[%clk 0:01:45.5]} 24... Nxe1 {[%clk 0:00:00.2]} 25. Rgxe1
{[%clk 0:01:45.6]} 25... Bd3+ {[%clk 0:00:01.1]} 26. Ka1 {[%clk 0:01:45.2]}
26... Qe6 {[%clk 0:00:01.6]} 27. e5 {[%clk 0:01:44.7]} 27... Qf5 {[%clk
0:00:01.7]} 28. Bxa8 {[%clk 0:01:44.2]} 28... Rxa8 {[%clk 0:00:00.9]} 29. Bc3
{[%clk 0:01:44.1]} 29... Rd8 {[%clk 0:00:01.2]} 30. Rd2 {[%clk 0:01:43.9]} 1-0